fUST/lending_fUST_20240217
["ID","MTS","AMOUNT","RATE_DAILY","PERIOD"]
[314233106,1708107038727,-598.71961495,0.00024537,2]
[314233107,1708107038737,-598.71961495,0.00024537,2]
[314233108,1708107038746,-598.71961495,0.00024537,2]
[314233109,1708107038755,-598.71961495,0.00024537,2]
[314233110,1708107038765,-598.71961495,0.00024537,2]
[314233111,1708107038774,-598.71961495,0.00024537,2]
[314233112,1708107038784,-598.71961495,0.00024537,2]
[314233113,1708107038793,-598.71961495,0.00024537,2]
[314233114,1708107038802,-598.71961495,0.00024537,2]
[314233115,1708107038812,-598.71961495,0.00024537,2]
[314233116,1708107038821,-598.71961495,0.00024537,2]
[314233117,1708107038829,-598.71961495,0.00024537,2]
[314233118,1708107038838,-598.71961495,0.00024537,2]
[314233119,1708107038847,-598.71961495,0.00024537,2]
[314233120,1708107038856,-598.71961495,0.00024537,2]
[314233121,1708107038866,-598.71961495,0.00024537,2]
[314233122,1708107038875,-598.71961495,0.00024537,2]
[314233123,1708107038884,-598.71961495,0.00024537,2]
[314233124,1708107038893,-598.71961495,0.00024537,2]
[314233125,1708107038903,-598.71961495,0.00024537,2]
[314233126,1708107038912,-598.71961495,0.00024537,2]
[314233127,1708107038921,-598.71961495,0.00024537,2]
[314233128,1708107038932,-598.71961495,0.00024537,2]
[314233129,1708107038941,-598.71961495,0.00024537,2]
[314233130,1708107038951,-598.71961495,0.00024537,2]
[314233131,1708107038962,-753.00434927,0.00024537,2]
[314233132,1708107038971,-753.00434927,0.00024537,2]
[314233133,1708107038980,-753.00434927,0.00024537,2]
[314233134,1708107038989,-753.00434927,0.00024537,2]
[314233135,1708107038998,-753.00434927,0.00024537,2]
[314233136,1708107039007,-753.00434927,0.00024537,2]
[314233137,1708107039017,-753.00434927,0.00024537,2]
[314233138,1708107039026,-753.00434927,0.00024537,2]
[314233139,1708107039035,-753.00434927,0.00024537,2]
[314233140,1708107039045,-753.00434927,0.00024537,2]
[314233141,1708107039054,-753.00434927,0.00024537,2]
[314233142,1708107039064,-753.00434927,0.00024537,2]
[314233143,1708107039074,-753.00434927,0.00024537,2]
[314233144,1708107039083,-753.00434927,0.00024537,2]
[314233145,1708107039095,-753.00434927,0.00024537,2]
[314233146,1708107039104,-753.00434927,0.00024537,2]
[314233147,1708107039114,-753.00434927,0.00024537,2]
[314233148,1708107039124,-753.00434927,0.00024537,2]
[314233149,1708107039134,-753.00434927,0.00024537,2]
[314233150,1708107039143,-753.00434927,0.00024537,2]
[314233151,1708107039153,-753.00434927,0.00024537,2]
[314233152,1708107039163,-753.00434927,0.00024537,2]
[314233153,1708107039172,-753.00434919,0.00024537,2]
[314233154,1708107039182,-151.0,0.00024537,2]
[314233155,1708107039192,-151.0,0.00024537,2]
[314233156,1708107039202,-204.37455258,0.00024538,3]
[314233157,1708107039211,-8651.02456089,0.00024538,2]
[314233174,1708107041025,-338.94,0.00024528,3]
[314233176,1708107041035,-624.1658,0.00024528,3]
[314233264,1708107045805,-4942.8342,0.00024528,3]
[314233265,1708107045814,-7137.4158,0.00024538,2]
[314233266,1708107046543,-8573.60000595,0.00024538,2]
[314233295,1708107996597,2052.83579,0.00020838,2]
[314233296,1708108027425,250.0,0.00020838,2]
[314233315,1708108231993,-1389.55,0.00021704,2]
[314233317,1708108232005,-3733.7387177,0.00021704,2]
[314233318,1708108232017,-2862.75608517,0.00021704,2]
[314233319,1708108232026,-3296.10052857,0.00021705,2]
[314233320,1708108232038,-9079.93775063,0.00021705,2]
[314233321,1708108232047,-16116.016759,0.00021705,2]
[314233322,1708108232057,-416.930989,0.00021705,2]
[314233323,1708108232067,-169.1006811,0.00021829,2]
[314233324,1708108232076,-4786.52213502,0.00021929,2]
[314233325,1708108232086,-5000.0,0.00021929,2]
[314233326,1708108232095,-166.25335224,0.00021929,2]
[314233327,1708108232105,-188.47293986,0.00022438,2]
[314233328,1708108232114,-200.0,0.00022769,7]
[314233329,1708108232123,-184.24344808,0.00024437,2]
[314233330,1708108232132,-4178.21,0.00024526,3]
[314233331,1708108232141,-5013.85,0.00024527,3]
[314233332,1708108232150,-750.0,0.00024528,3]
[314233333,1708108232160,-500.0,0.00024537,2]
[314233334,1708108232169,-500.0,0.00024537,2]
[314233335,1708108232178,-500.0,0.00024537,2]
[314233336,1708108232187,-500.0,0.00024537,2]
[314233337,1708108232196,-500.0,0.00024537,2]
[314233338,1708108232205,-375.27452892,0.00024537,2]
[314233339,1708108232214,-500.0,0.00024537,2]
[314233341,1708108232224,-500.0,0.00024537,2]
[314233343,1708108232233,-500.0,0.00024537,2]
[314233345,1708108232243,-500.0,0.00024537,2]
[314233348,1708108232252,-500.0,0.00024537,2]
[314233349,1708108232262,-500.0,0.00024537,2]
[314233351,1708108232271,-331.74007473,0.00024537,2]
[314233427,1708108237964,-326.91750851,0.00022437,2]
[314233428,1708108237974,-1672.74435094,0.00024526,2]
[314233429,1708108238021,-14994.39500408,0.00024526,2]
[314233430,1708108238031,-168.25992527,0.00024537,2]
[314233431,1708108238040,-311.57669359,0.00024537,2]
[314233432,1708108238051,-500.0,0.00024537,2]
[314233433,1708108238060,-500.0,0.00024537,2]
[314233434,1708108238071,-500.0,0.00024537,2]
[314233435,1708108238080,-500.0,0.00024537,2]
[314233436,1708108238090,-500.0,0.00024537,2]
[314233437,1708108238099,-300.0,0.00024537,2]
[314233438,1708108238108,-500.0,0.00024537,2]
[314233439,1708108238118,-300.0,0.00024537,2]
[314233440,1708108238127,-300.0,0.00024537,2]
[314233441,1708108238136,-409.02292041,0.00024537,2]
[314233442,1708108238146,-500.0,0.00024537,2]
[314233443,1708108238155,-500.0,0.00024537,2]
[314233444,1708108238165,-500.0,0.00024537,2]
[314233445,1708108238174,-500.0,0.00024537,2]
[314233446,1708108238183,-500.0,0.00024537,2]
[314233447,1708108238193,-500.0,0.00024537,2]
[314233448,1708108238202,-500.0,0.00024537,2]
[314233449,1708108238212,-550.0,0.00024537,2]
[314233450,1708108238222,-500.0,0.00024537,2]
[314233451,1708108238231,-500.0,0.00024537,2]
[314233452,1708108238242,-500.0,0.00024537,2]
[314233453,1708108238251,-186.35242331,0.00024537,2]
[314233454,1708108238260,-591.87251211,0.00024537,2]
[314233455,1708108238270,-250.0,0.00024537,2]
[314233456,1708108238279,-500.0,0.00024537,2]
[314233457,1708108238289,-500.0,0.00024537,2]
[314233458,1708108238298,-509.20608566,0.00024537,2]
[314233459,1708108238307,-500.0,0.00024537,2]
[314233460,1708108238317,-500.0,0.00024537,2]
[314233461,1708108238326,-71.10891084,0.00024537,2]
[314233479,1708108241425,-428.89108916,0.00024537,2]
[314233480,1708108241435,-397.40931692,0.00024537,2]
[314233481,1708108241445,-500.0,0.00024537,2]
[314233482,1708108241454,-500.0,0.00024537,2]
[314233483,1708108241463,-500.0,0.00024537,2]
[314233484,1708108241472,-163.79646963,0.00024537,2]
[314233485,1708108241486,-336.20353037,0.00024537,2]
[314233486,1708108241497,-500.0,0.00024537,2]
[314233487,1708108241506,-500.0,0.00024537,2]
[314233488,1708108241515,-500.0,0.00024537,2]
[314233489,1708108241523,-500.0,0.00024537,2]
[314233490,1708108241532,-500.0,0.00024537,2]
[314233491,1708108241542,-500.0,0.00024537,2]
[314233492,1708108241551,-500.0,0.00024537,2]
[314233493,1708108241560,-500.0,0.00024537,2]
[314233494,1708108241569,-500.0,0.00024537,2]
[314233495,1708108241578,-500.0,0.00024537,2]
[314233496,1708108241588,-500.0,0.00024537,2]
[314233497,1708108241597,-500.0,0.00024537,2]
[314233498,1708108241606,-500.0,0.00024537,2]
[314233499,1708108241615,-500.0,0.00024537,2]
[314233500,1708108241624,-500.0,0.00024537,2]
[314233501,1708108241634,-500.0,0.00024537,2]
[314233502,1708108241643,-500.0,0.00024537,2]
[314233503,1708108241652,-500.0,0.00024537,2]
[314233504,1708108241661,-500.0,0.00024537,2]
[314233505,1708108241671,-500.0,0.00024537,2]
[314233506,1708108241680,-500.0,0.00024537,2]
[314233507,1708108241689,-500.0,0.00024537,2]
[314233508,1708108241698,-321.19401274,0.00024537,2]
[314233509,1708108241707,-500.0,0.00024537,2]
[314233510,1708108241716,-500.0,0.00024537,2]
[314233511,1708108241726,-500.0,0.00024537,2]
[314233512,1708108241735,-500.0,0.00024537,2]
[314233513,1708108241747,-500.0,0.00024537,2]
[314233514,1708108241760,-500.0,0.00024537,2]
[314233515,1708108241769,-428.53257754,0.00024537,2]
[314233516,1708108241778,-204.37455257,0.00024538,3]
[314233517,1708108241788,-21394.73299457,0.00024538,2]
[314233518,1708108241805,-12105.49278761,0.00024538,2]
[314233519,1708108241825,-4967.14970059,0.00024538,2]
[314233520,1708108241838,-4074.15197877,0.00024538,2]
[314233521,1708108241851,-9952.73412067,0.00024538,2]
[314233522,1708108241914,-36647.41382026,0.00024538,2]
[314233523,1708108241926,-1031.9001699,0.00024538,2]
[314233555,1708108243891,-3481.84,0.00024528,3]
[314233556,1708108243902,-522.05203513,0.00024538,2]
[314233600,1708108245990,-15149.96138153,0.00024538,2]
[314233602,1708108246003,-2248.13,0.00024538,2]
[314233630,1708109429415,500.0,0.00021,2]
[314233691,1708109438202,-1029.49833985,0.0002143,2]
[314233693,1708109438214,-168.422778,0.00021431,2]
[314233696,1708109438224,-301.10937394,0.00021482,2]
[314233698,1708109438236,-1000.0,0.00021482,2]
[314233700,1708109438247,-6239.42055176,0.00021482,2]
[314233702,1708109438259,-445.51487717,0.00021482,2]
[314233704,1708109438269,-911.80442608,0.00021483,2]
[314233706,1708109438281,-6077.95471725,0.00021483,2]
[314233868,1708109441435,-2196.56635165,0.00021483,2]
[314233885,1708109443130,-886.027425,0.00021483,2]
[314233887,1708109443145,-10548.36446312,0.00021483,2]
[314233889,1708109443155,-208.465494,0.00021566,2]
[314233890,1708109443165,-163.38875591,0.00021604,2]
[314233891,1708109443174,-292.67609375,0.00022437,2]
[314233893,1708109443184,-288.13801011,0.00022438,2]
[314233894,1708109443199,-163.38875591,0.00022588,2]
[314233896,1708109443209,-200.0,0.0002279,7]
[314233897,1708109443219,-200.79770722,0.00023472,6]
[314233899,1708109443230,-11111.42623668,0.00023563,2]
[314233901,1708109443240,-163.38875591,0.00023572,2]
[314233903,1708109443249,-153.0,0.00023836,2]
[314233905,1708109443259,-153.0,0.000239,2]
[314233907,1708109443268,-153.0,0.000239,2]
[314233908,1708109443278,-306.0,0.000239,2]
[314233909,1708109443287,-1000.0,0.00024253,3]
[314233911,1708109443296,-1000.0,0.00024253,3]
[314233913,1708109443305,-1000.0,0.00024253,3]
[314233915,1708109443314,-3654.05,0.00024528,3]
[314233917,1708109443329,-5033.61,0.00024528,3]
[314233919,1708109443338,-352.56140896,0.00024536,2]
[314233921,1708109443347,-415883.78162235,0.00024538,2]
[314233923,1708109443356,-163.38875591,0.00024556,2]
[314233925,1708109443366,-28747.23980242,0.00024656,2]
[314233927,1708109443375,-1032.93106308,0.00024657,2]
[314233929,1708109443385,-200.0,0.00024658,2]
[314233931,1708109443395,-166.666666,0.00024658,2]
[314233933,1708109443404,-380.0,0.00024658,2]
[314233935,1708109443414,-200.2824076,0.00024658,2]
[314233948,1708109443515,-306.0,0.00024658,2]
[314233950,1708109443527,-200.2824076,0.00024658,2]
[314233952,1708109443537,-153.0,0.00024658,2]
[314233954,1708109443546,-300.0,0.00024993,2]
[314233956,1708109443556,-4742.51638148,0.00025,2]
[314233958,1708109443565,-524.725743,0.00025,11]
[314233960,1708109443574,-280.0,0.00025069,7]
[314233962,1708109443583,-166.666666,0.00025235,2]
[314233964,1708109443593,-653.43836639,0.00025429,2]
[314233966,1708109443602,-300.0,0.00025449,2]
[314233968,1708109443611,-17892.70166183,0.00025478,2]
[314233970,1708109443621,-166.666666,0.00025812,2]
[314233972,1708109443630,-300.0,0.00025905,2]
[314233973,1708109443639,-153.0,0.00026301,2]
[314233975,1708109443648,-300.0,0.00026362,2]
[314233977,1708109443657,-190.39456941,0.00026377,3]
[314233979,1708109443667,-3015.29990986,0.00026382,3]
[314233981,1708109443676,-166.666666,0.00026388,2]
[314233983,1708109443686,-533.10479435,0.00026392,2]
[314233985,1708109443696,-531.76657307,0.00026397,3]
[314233987,1708109443705,-241.05095601,0.00026418,2]
[314233990,1708109443717,-459.56560555,0.00026444,2]
[314233991,1708109443727,-720.29148382,0.00026489,2]
[314233993,1708109443736,-565.3687331,0.00026498,2]
[314233996,1708109443746,-1000.0,0.00026498,3]
[314233998,1708109443755,-300.0,0.00026818,2]
[314233999,1708109443765,-166.666666,0.00026965,2]
[314234001,1708109443774,-300.0,0.00027274,2]
[314234003,1708109443783,-1581.37473008,0.00027297,2]
[314234005,1708109443792,-500.0,0.00027397,2]
[314234007,1708109443802,-500.0,0.00027397,2]
[314234009,1708109443812,-500.0,0.00027397,2]
[314234012,1708109443822,-1000.0,0.00027397,2]
[314234014,1708109443835,-500.0,0.00027397,2]
[314234016,1708109443844,-500.0,0.00027397,2]
[314234018,1708109443853,-500.0,0.00027397,2]
[314234020,1708109443865,-500.0,0.00027397,2]
[314234022,1708109443873,-500.0,0.00027397,2]
[314234024,1708109443882,-500.0,0.00027397,2]
[314234026,1708109443891,-507.2584554,0.00027397,2]
[314234027,1708109443900,-3591.58,0.00027397,2]
[314234029,1708109443909,-500.0,0.00027397,2]
[314234031,1708109443918,-500.0,0.00027397,2]
[314234033,1708109443928,-500.0,0.00027397,2]
[314234035,1708109443937,-166.83577801,0.00027397,2]
[314234037,1708109443947,-500.0,0.00027397,2]
[314234039,1708109443956,-500.0,0.00027397,2]
[314234042,1708109443965,-500.0,0.00027397,2]
[314234043,1708109443975,-151.0,0.00027397,2]
[314234045,1708109443984,-555.14,0.00027397,2]
[314234047,1708109443993,-267.63397741,0.00027397,2]
[314234049,1708109444002,-500.0,0.00027397,2]
[314234051,1708109444011,-500.0,0.00027397,2]
[314234053,1708109444021,-579.26416419,0.00027397,2]
[314234055,1708109444030,-363.08676384,0.00027397,2]
[314234059,1708109444049,-500.0,0.00027397,2]
[314234061,1708109444062,-563.14162363,0.00027397,2]
[314234063,1708109444072,-513.15207544,0.00027397,2]
[314234065,1708109444082,-500.0,0.00027397,2]
[314234067,1708109444092,-1965.17,0.00027397,2]
[314234069,1708109444101,-500.0,0.00027397,2]
[314234071,1708109444111,-501.86324605,0.00027397,2]
[314234073,1708109444121,-500.0,0.00027397,2]
[314234075,1708109444130,-1837.03,0.00027397,2]
[314234077,1708109444145,-500.0,0.00027397,2]
[314234079,1708109444155,-500.0,0.00027397,2]
[314234081,1708109444164,-215.65211747,0.00027397,2]
[314234084,1708109444174,-500.0,0.00027397,2]
[314234086,1708109444185,-500.0,0.00027397,2]
[314234088,1708109444195,-500.0,0.00027397,2]
[314234089,1708109444204,-500.0,0.00027397,2]
[314234092,1708109444215,-1000.0,0.00027397,2]
[314234094,1708109444226,-500.0,0.00027397,2]
[314234096,1708109444236,-500.0,0.00027397,2]
[314234097,1708109444246,-500.0,0.00027397,2]
[314234098,1708109444255,-381.96485908,0.00027397,2]
[314234099,1708109444265,-569.92,0.00027397,2]
[314234100,1708109444275,-500.0,0.00027397,2]
[314234101,1708109444284,-510.0607271,0.00027397,2]
[314234102,1708109444294,-365.59554834,0.00027397,2]
[314234103,1708109444303,-517.16996211,0.00027397,2]
[314234104,1708109444312,-500.0,0.00027397,2]
[314234105,1708109444321,-1000.0,0.00027397,2]
[314234106,1708109444330,-500.0,0.00027397,2]
[314234107,1708109444339,-500.0,0.00027397,2]
[314234108,1708109444349,-500.0,0.00027397,2]
[314234109,1708109444359,-797.84,0.00027397,2]
[314234110,1708109444368,-500.0,0.00027397,2]
[314234111,1708109444377,-500.0,0.00027397,2]
[314234112,1708109444387,-500.0,0.00027397,2]
[314234113,1708109444396,-714.39,0.00027397,2]
[314234114,1708109444405,-500.0,0.00027397,2]
[314234115,1708109444415,-500.0,0.00027397,2]
[314234116,1708109444424,-500.0,0.00027397,2]
[314234117,1708109444434,-155.0,0.00027397,2]
[314234118,1708109444443,-500.0,0.00027397,2]
[314234119,1708109444452,-500.0,0.00027397,2]
[314234121,1708109444462,-500.0,0.00027397,2]
[314234122,1708109444471,-500.0,0.00027397,2]
[314234124,1708109444482,-500.0,0.00027397,2]
[314234126,1708109444493,-500.0,0.00027397,2]
[314234128,1708109444503,-500.0,0.00027397,2]
[314234131,1708109444512,-613.43903521,0.00027397,2]
[314234133,1708109444522,-501.41719031,0.00027397,2]
[314234134,1708109444532,-500.0,0.00027397,2]
[314234137,1708109444542,-500.0,0.00027397,2]
[314234138,1708109444552,-500.0,0.00027397,2]
[314234141,1708109444562,-430.49521315,0.00027397,2]
[314234143,1708109444572,-503.66942784,0.00027397,2]
[314234145,1708109444582,-576.54,0.00027397,2]
[314234146,1708109444591,-500.0,0.00027397,2]
[314234149,1708109444601,-500.0,0.00027397,2]
[314234151,1708109444611,-1574.34,0.00027397,2]
[314234153,1708109444621,-869.62,0.00027397,2]
[314234155,1708109444631,-151.0,0.00027397,2]
[314234157,1708109444641,-151.0,0.00027397,2]
[314234159,1708109444650,-500.0,0.00027397,2]
[314234161,1708109444660,-1000.0,0.00027397,2]
[314234163,1708109444670,-500.0,0.00027397,2]
[314234164,1708109444679,-1219.36,0.00027397,2]
[314234166,1708109444689,-646.15064202,0.00027397,2]
[314234169,1708109444699,-500.0,0.00027397,2]
[314234171,1708109444709,-500.0,0.00027397,2]
[314234173,1708109444719,-500.0,0.00027397,2]
[314234175,1708109444729,-500.0,0.00027397,2]
[314234176,1708109444738,-8755.61,0.00027397,2]
[314234179,1708109444749,-7586.1,0.00027397,2]
[314234181,1708109444758,-500.0,0.00027397,2]
[314234183,1708109444767,-500.0,0.00027397,2]
[314234185,1708109444777,-5817.49,0.00027397,2]
[314234187,1708109444786,-292.77679659,0.00027397,2]
[314234189,1708109444796,-333.48545823,0.00027397,2]
[314234191,1708109444806,-1060.34,0.00027397,2]
[314234193,1708109444815,-2182.32,0.00027397,2]
[314234195,1708109444824,-1587.02,0.00027397,2]
[314234197,1708109444833,-1479.97,0.00027397,2]
[314234199,1708109444843,-908.23,0.00027397,2]
[314234201,1708109444852,-500.0,0.00027397,2]
[314234203,1708109444861,-500.0,0.00027397,2]
[314234205,1708109444870,-500.0,0.00027397,2]
[314234207,1708109444879,-500.0,0.00027397,2]
[314234209,1708109444888,-500.0,0.00027397,2]
[314234211,1708109444898,-500.0,0.00027397,2]
[314234213,1708109444907,-524.14886469,0.00027397,15]
[314234215,1708109444917,-983.13,0.00027397,2]
[314234217,1708109444926,-500.0,0.00027397,2]
[314234219,1708109444935,-1268.03,0.00027397,2]
[314234221,1708109444944,-14609.34,0.00027397,2]
[314234223,1708109444953,-500.0,0.00027397,2]
[314234225,1708109444963,-500.0,0.00027397,2]
[314234227,1708109444971,-500.0,0.00027397,2]
[314234229,1708109444981,-12747.65,0.00027397,2]
[314234231,1708109444991,-9742.87,0.00027397,2]
[314234232,1708109445000,-1146.09,0.00027397,2]
[314234235,1708109445010,-1785.14,0.00027397,2]
[314234237,1708109445022,-535.48702604,0.00027397,2]
[314234239,1708109445031,-500.0,0.00027397,2]
[314234241,1708109445041,-500.0,0.00027397,2]
[314234243,1708109445050,-500.0,0.00027397,2]
[314234245,1708109445059,-500.0,0.00027397,2]
[314234247,1708109445068,-500.0,0.00027397,2]
[314234249,1708109445078,-500.0,0.00027397,2]
[314234251,1708109445087,-500.0,0.00027397,2]
[314234253,1708109445096,-500.0,0.00027397,2]
[314234255,1708109445105,-500.0,0.00027397,2]
[314234257,1708109445114,-500.0,0.00027397,2]
[314234259,1708109445124,-500.0,0.00027397,2]
[314234261,1708109445133,-1475.67,0.00027397,2]
[314234263,1708109445143,-512.74,0.00027397,2]
[314234265,1708109445154,-500.0,0.00027397,2]
[314234267,1708109445163,-721.64,0.00027397,2]
[314234269,1708109445173,-500.0,0.00027397,2]
[314234271,1708109445182,-500.0,0.00027397,2]
[314234273,1708109445191,-962.54,0.00027397,2]
[314234275,1708109445200,-2019.67,0.00027397,2]
[314234277,1708109445209,-1126.97,0.00027397,2]
[314234279,1708109445219,-500.0,0.00027397,2]
[314234281,1708109445228,-500.0,0.00027397,2]
[314234283,1708109445237,-500.0,0.00027397,2]
[314234285,1708109445248,-500.0,0.00027397,2]
[314234287,1708109445257,-500.0,0.00027397,2]
[314234289,1708109445266,-500.0,0.00027397,2]
[314234291,1708109445275,-230.36,0.00027397,2]
[314234292,1708109445285,-500.0,0.00027397,2]
[314234294,1708109445294,-500.0,0.00027397,2]
[314234297,1708109445304,-500.0,0.00027397,2]
[314234299,1708109445313,-1325.35,0.00027397,2]
[314234301,1708109445323,-2487.42,0.00027397,2]
[314234303,1708109445332,-507.84190788,0.00027397,2]
[314234305,1708109445341,-500.0,0.00027397,2]
[314234307,1708109445350,-500.0,0.00027397,2]
[314234309,1708109445360,-10983.68,0.00027397,2]
[314234311,1708109445369,-500.0,0.00027397,2]
[314234313,1708109445378,-1164.36,0.00027397,2]
[314234315,1708109445388,-874.63,0.00027397,2]
[314234317,1708109445397,-533.40851466,0.00027397,2]
[314234319,1708109445406,-504.35773399,0.00027397,2]
[314234321,1708109445415,-1472.24,0.00027397,2]
[314234323,1708109445426,-1046.89,0.00027397,2]
[314234325,1708109445435,-238.22517568,0.00027397,10]
[314234327,1708109445443,-288.13801011,0.00027438,2]
[314234329,1708109445453,-500.0,0.00027534,2]
[314234331,1708109445462,-166.666666,0.00027542,2]
[314234333,1708109445471,-391.0,0.00027575,15]
[314234335,1708109445480,-151.01208097,0.00027642,4]
[314234336,1708109445490,-500.0,0.00027671,2]
[314234338,1708109445499,-500.0,0.00027671,2]
[314234351,1708109445585,-1000.0,0.00027671,2]
[314234353,1708109445604,-505.78987287,0.00027671,2]
[314234355,1708109445614,-500.0,0.00027671,2]
[314234357,1708109445623,-591.31156271,0.00027671,2]
[314234359,1708109445632,-500.0,0.00027671,2]
[314234362,1708109445642,-500.0,0.00027671,2]
[314234364,1708109445651,-338.35172443,0.00027671,2]
[314234366,1708109445660,-3591.58,0.00027671,2]
[314234368,1708109445669,-514.19124919,0.00027671,2]
[314234370,1708109445678,-500.0,0.00027671,2]
[314234372,1708109445688,-446.541526,0.00027671,2]
[314234374,1708109445697,-500.0,0.00027671,2]
[314234376,1708109445706,-500.0,0.00027671,2]
[314234378,1708109445716,-500.0,0.00027671,2]
[314234381,1708109445726,-555.14,0.00027671,2]
[314234383,1708109445735,-502.74547419,0.00027671,2]
[314234385,1708109445745,-500.0,0.00027671,2]
[314234387,1708109445754,-500.0,0.00027671,2]
[314234389,1708109445763,-500.0,0.00027671,2]
[314234391,1708109445773,-1965.17,0.00027671,2]
[314234393,1708109445782,-500.0,0.00027671,2]
[314234395,1708109445791,-500.0,0.00027671,2]
[314234397,1708109445801,-1837.03,0.00027671,2]
[314234399,1708109445810,-500.0,0.00027671,2]
[314234401,1708109445819,-632.55827004,0.00027671,2]
[314234403,1708109445829,-500.0,0.00027671,2]
[314234406,1708109445838,-533.40924664,0.00027671,2]
[314234409,1708109445848,-500.0,0.00027671,2]
[314234412,1708109445858,-487.98431059,0.00027671,2]
[314234414,1708109445867,-1000.0,0.00027671,2]
[314234416,1708109445876,-500.0,0.00027671,2]
[314234418,1708109445885,-500.0,0.00027671,2]
[314234420,1708109445894,-500.0,0.00027671,2]
[314234422,1708109445903,-569.92,0.00027671,2]
[314234424,1708109445912,-500.0,0.00027671,2]
[314234426,1708109445921,-500.0,0.00027671,2]
[314234428,1708109445930,-447.8885107,0.00027671,2]
[314234430,1708109445939,-500.0,0.00027671,2]
[314234432,1708109445948,-500.0,0.00027671,2]
[314234434,1708109445957,-797.84,0.00027671,2]
[314234436,1708109445966,-500.0,0.00027671,2]
[314234437,1708109445975,-647.88090187,0.00027671,2]
[314234439,1708109445984,-500.0,0.00027671,2]
[314234441,1708109445993,-714.39,0.00027671,2]
[314234443,1708109446003,-521.66501298,0.00027671,2]
[314234445,1708109446012,-411.11924494,0.00027671,2]
[314234448,1708109446022,-500.0,0.00027671,2]
[314234449,1708109446031,-500.0,0.00027671,2]
[314234452,1708109446041,-500.0,0.00027671,2]
[314234454,1708109446050,-500.0,0.00027671,2]
[314234456,1708109446060,-500.0,0.00027671,2]
[314234458,1708109446070,-500.0,0.00027671,2]
[314234459,1708109446079,-500.0,0.00027671,2]
[314234462,1708109446089,-500.0,0.00027671,2]
[314234464,1708109446098,-201.73772171,0.00027671,2]
[314234465,1708109446109,-500.0,0.00027671,2]
[314234468,1708109446119,-576.54,0.00027671,2]
[314234469,1708109446128,-500.0,0.00027671,2]
[314234471,1708109446138,-500.0,0.00027671,2]
[314234473,1708109446151,-1574.34,0.00027671,2]
[314234475,1708109446161,-869.62,0.00027671,2]
[314234477,1708109446171,-500.0,0.00027671,2]
[314234479,1708109446181,-1000.0,0.00027671,2]
[314234482,1708109446191,-560.82812338,0.00027671,2]
[314234483,1708109446201,-1219.36,0.00027671,2]
[314234485,1708109446211,-500.0,0.00027671,2]
[314234487,1708109446221,-500.0,0.00027671,2]
[314234489,1708109446230,-500.0,0.00027671,2]
[314234491,1708109446240,-8755.61,0.00027671,2]
[314234493,1708109446250,-7586.1,0.00027671,2]
[314234495,1708109446261,-500.0,0.00027671,2]
[314234497,1708109446271,-5817.49,0.00027671,2]
[314234500,1708109446281,-1060.34,0.00027671,2]
[314234501,1708109446291,-2182.32,0.00027671,2]
[314234503,1708109446301,-1587.02,0.00027671,2]
[314234506,1708109446310,-1479.97,0.00027671,2]
[314234507,1708109446320,-908.23,0.00027671,2]
[314234509,1708109446330,-500.0,0.00027671,2]
[314234511,1708109446340,-983.13,0.00027671,2]
[314234513,1708109446350,-1268.03,0.00027671,2]
[314234515,1708109446360,-14609.34,0.00027671,2]